[Event "Norwegian Championship 2022"]
[Site "Kongsvinger, Norway"]
[Date "2022.07.16"]
[Round "9"]
[White "Abdrlauf, Elham"]
[Black " Østenstad, Berge"]
[Result "1/2-1/2"]
[Board "6"]
[TimeControl "40/5400+30:1800+30"]
[WhiteTitle "FM"]
[BlackTitle "GM"]
[WhiteFideId "1533533"]
[BlackFideId "1500058"]
[WhiteElo "2466"]
[BlackElo "2451"]

1. e4 {[%clk 01:30:59]} e5 {[%clk 01:30:24]} {[%emt 00:00:37]} 2. Nc3 {[%clk
01:31:23]} {[%emt 00:00:06]} Nf6 {[%clk 01:30:47]} {[%emt 00:00:07]} 3. Bc4
{[%clk 01:30:39]} {[%emt 00:01:14]} Nxe4 {[%clk 01:30:05]} {[%emt 00:01:12]} 4.
Qh5 {[%clk 01:31:03]} {[%emt 00:00:05]} Nd6 {[%clk 01:30:31]} {[%emt 00:00:05]}
5. Bb3 {[%clk 01:31:30]} {[%emt 00:00:03]} Be7 {[%clk 01:30:32]} {[%emt
00:00:29]} 6. Qxe5 {[%clk 01:31:49]} {[%emt 00:00:11]} O-O {[%clk 01:30:43]}
{[%emt 00:00:19]} 7. Nf3 {[%clk 01:32:14]} {[%emt 00:00:05]} Nc6 {[%clk
01:29:16]} {[%emt 00:01:56]} 8. Qf4 {[%clk 01:25:52]} {[%emt 00:06:52]} Na5
{[%clk 01:20:05]} {[%emt 00:09:41]} 9. d4 {[%clk 01:25:33]} {[%emt 00:00:49]}
c6 {[%clk 01:18:23]} {[%emt 00:02:12]} 10. O-O {[%clk 01:24:37]} {[%emt
00:01:25]} b5 {[%clk 01:12:09]} {[%emt 00:06:45]} 11. Re1 {[%clk 01:15:53]}
{[%emt 00:09:13]} Bb7 {[%clk 00:54:58]} {[%emt 00:17:41]} 12. Ne5 {[%clk
00:56:20]} {[%emt 00:20:04]} b4 {[%clk 00:44:42]} {[%emt 00:10:46]} 13. Na4
{[%clk 00:54:48]} {[%emt 00:02:02]} Nxb3 {[%clk 00:36:25]} {[%emt 00:08:48]} 14.
axb3 {[%clk 00:55:11]} {[%emt 00:00:06]} Ne8 {[%clk 00:24:44]} {[%emt
00:12:10]} 15. Nc5 {[%clk 00:49:09]} {[%emt 00:06:33]} Bc8 {[%clk 00:25:09]}
{[%emt 00:00:05]} 16. Bd2 {[%clk 00:37:56]} {[%emt 00:11:44]} Nc7 {[%clk
00:25:22]} {[%emt 00:00:17]} 17. Qe4 {[%clk 00:32:39]} {[%emt 00:05:47]} Nd5
{[%clk 00:22:27]} {[%emt 00:03:25]} 18. c4 {[%clk 00:33:02]} {[%emt 00:00:07]}
bxc3 {[%clk 00:22:46]} {[%emt 00:00:11]} 19. bxc3 {[%clk 00:33:29]} {[%emt
00:00:03]} f6 {[%clk 00:15:56]} {[%emt 00:07:20]} 20. Ned3 {[%clk 00:33:02]}
{[%emt 00:00:57]} Re8 {[%clk 00:15:27]} {[%emt 00:00:58]} 21. c4 {[%clk
00:16:03]} {[%emt 00:17:31]} Nc7 {[%clk 00:15:40]} {[%emt 00:00:15]} 22. Qf3
{[%clk 00:16:27]} {[%emt 00:00:07]} d6 {[%clk 00:12:11]} {[%emt 00:03:59]} 23.
Na4 {[%clk 00:16:53]} {[%emt 00:00:04]} Bd7 {[%clk 00:11:20]} {[%emt 00:01:21]}
24. Ba5 {[%clk 00:14:45]} {[%emt 00:02:38]} Qc8 {[%clk 00:10:18]} {[%emt
00:01:32]} 25. d5 {[%clk 00:13:02]} {[%emt 00:02:13]} Na6 {[%clk 00:09:38]}
{[%emt 00:01:09]} 26. Nf4 {[%clk 00:11:51]} {[%emt 00:01:41]} Qb7 {[%clk
00:09:23]} {[%emt 00:00:45]} 27. Qg3 {[%clk 00:10:51]} {[%emt 00:01:32]} Bf8
{[%clk 00:09:03]} {[%emt 00:00:48]} 28. Nh5 {[%clk 00:09:39]} {[%emt 00:01:43]}
Kh8 {[%clk 00:08:45]} {[%emt 00:00:48]} 29. Bc3 {[%clk 00:09:49]} {[%emt
00:00:20]} cxd5 {[%clk 00:06:12]} {[%emt 00:03:03]} 30. cxd5 {[%clk 00:06:20]}
{[%emt 00:03:59]} Rxe1+ {[%clk 00:05:09]} {[%emt 00:01:32]} 31. Rxe1 {[%clk
00:06:49]} {[%emt 00:00:01]} Re8 {[%clk 00:05:31]} {[%emt 00:00:08]} 32. Rxe8
{[%clk 00:05:42]} {[%emt 00:01:38]} Bxe8 {[%clk 00:05:56]} {[%emt 00:00:05]} 33.
Nxf6 {[%clk 00:06:09]} {[%emt 00:00:02]} Bxa4 {[%clk 00:04:10]} {[%emt
00:02:16]} 34. Qh4 {[%clk 00:06:39]} h6 {[%clk 00:02:38]} {[%emt 00:02:02]} 35.
Qxa4 {[%clk 00:04:57]} {[%emt 00:02:12]} gxf6 {[%clk 00:01:56]} {[%emt
00:01:12]} 36. Bxf6+ {[%clk 00:05:22]} {[%emt 00:00:04]} Bg7 {[%clk 00:01:16]}
{[%emt 00:01:09]} 37. Qe8+ {[%clk 00:01:21]} {[%emt 00:04:31]} Kh7 {[%clk
00:01:42]} {[%emt 00:00:04]} 38. Qe4+ {[%clk 00:01:40]} {[%emt 00:00:12]} Kg8
{[%clk 00:01:34]} {[%emt 00:00:38]} 39. Bxg7 {[%clk 00:01:02]} {[%emt
00:01:08]} Qxg7 {[%clk 00:00:46]} {[%emt 00:01:19]} 40. Qe6+ {[%clk 00:31:30]}
{[%emt 00:00:01]} Kh7 {[%clk 00:30:49]} {[%emt 00:00:28]} 41. Qf5+ {[%clk
00:29:13]} {[%emt 00:02:47]} Qg6 {[%clk 00:29:30]} {[%emt 00:01:48]} 42. Qd7+
{[%clk 00:29:36]} {[%emt 00:00:07]} Qg7 {[%clk 00:29:53]} {[%emt 00:00:07]} 43.
Qf5+ {[%clk 00:29:54]} {[%emt 00:00:12]} Qg6 {[%clk 00:30:17]} {[%emt
00:00:06]} 1/2-1/2

[Event "Norwegian Championship 2022"]
[Site "Kongsvinger, Norway"]
[Date "2022.07.16"]
[Round "9"]
[White "Vestby-Ellingsen, Mads"]
[Black "Djurhuus, Rune"]
[Result "1/2-1/2"]
[Board "7"]
[TimeControl "40/5400+30:1800+30"]
[WhiteTitle "IM"]
[BlackTitle "GM"]
[WhiteFideId "1520857"]
[BlackFideId "1500082"]
[WhiteElo "2351"]
[BlackElo "2407"]

1. e4 {[%clk 01:30:56]} {[%emt 00:00:03]} c5 {[%clk 01:23:50]} {[%emt
00:07:12]} 2. Nf3 {[%clk 01:29:56]} {[%emt 00:01:29]} g6 {[%clk 01:22:09]}
{[%emt 00:02:12]} 3. d4 {[%clk 01:30:00]} {[%emt 00:00:25]} cxd4 {[%clk
01:22:35]} {[%emt 00:00:05]} 4. Nxd4 {[%clk 01:30:05]} {[%emt 00:00:23]} Bg7
{[%clk 01:23:01]} {[%emt 00:00:05]} 5. c4 {[%clk 01:30:08]} {[%emt 00:00:26]}
Nc6 {[%clk 01:22:36]} {[%emt 00:00:57]} 6. Be3 {[%clk 01:30:19]} {[%emt
00:00:17]} Nf6 {[%clk 01:21:49]} {[%emt 00:01:18]} 7. Nc3 {[%clk 01:30:29]}
{[%emt 00:00:19]} d6 {[%clk 01:22:07]} {[%emt 00:00:13]} 8. Be2 {[%clk
01:30:35]} {[%emt 00:00:22]} O-O {[%clk 01:22:30]} {[%emt 00:00:09]} 9. O-O
{[%clk 01:30:42]} {[%emt 00:00:22]} Bd7 {[%clk 01:21:03]} {[%emt 00:01:59]} 10.
Nc2 {[%clk 01:30:38]} {[%emt 00:00:33]} a6 {[%clk 01:21:25]} {[%emt 00:00:10]}
11. f3 {[%clk 01:30:10]} {[%emt 00:00:56]} Rb8 {[%clk 01:18:16]} {[%emt
00:03:39]} 12. Qd2 {[%clk 01:19:06]} {[%emt 00:11:33]} Ne5 {[%clk 01:15:49]}
{[%emt 00:02:58]} 13. a4 {[%clk 01:17:47]} {[%emt 00:01:49]} a5 {[%clk
01:04:47]} {[%emt 00:11:33]} 14. Rfd1 {[%clk 01:10:01]} {[%emt 00:08:14]} Be6
{[%clk 00:58:26]} {[%emt 00:06:52]} 15. Nd4 {[%clk 00:57:43]} {[%emt 00:12:47]}
Bd7 {[%clk 00:50:17]} {[%emt 00:08:40]} 16. Rac1 {[%clk 00:55:52]} {[%emt
00:02:20]} Bc6 {[%clk 00:49:18]} {[%emt 00:01:30]} 17. b3 {[%clk 00:51:37]}
{[%emt 00:04:45]} Ned7 {[%clk 00:47:55]} {[%emt 00:01:54]} 18. Qc2 {[%clk
00:51:22]} {[%emt 00:00:44]} Qc8 {[%clk 00:47:12]} {[%emt 00:01:14]} 19. Ncb5
{[%clk 00:40:48]} {[%emt 00:11:05]} Nc5 {[%clk 00:44:13]} {[%emt 00:03:29]} 20.
e5 {[%clk 00:36:34]} {[%emt 00:04:43]} Ne8 {[%clk 00:38:55]} {[%emt 00:05:50]}
21. exd6 {[%clk 00:35:03]} {[%emt 00:02:01]} exd6 {[%clk 00:39:13]} {[%emt
00:00:13]} 22. Nxc6 {[%clk 00:34:30]} {[%emt 00:01:02]} Qxc6 {[%clk 00:35:17]}
{[%emt 00:04:26]} 23. Rd2 {[%clk 00:30:06]} {[%emt 00:04:54]} f5 {[%clk
00:32:54]} {[%emt 00:02:54]} 24. Rcd1 {[%clk 00:27:38]} {[%emt 00:02:57]} f4
{[%clk 00:32:14]} {[%emt 00:01:11]} 25. Bd4 {[%clk 00:27:25]} {[%emt 00:00:43]}
Bxd4+ {[%clk 00:32:18]} {[%emt 00:00:26]} 26. Rxd4 {[%clk 00:27:44]} {[%emt
00:00:11]} Rd8 {[%clk 00:32:03]} {[%emt 00:00:46]} 27. Kh1 {[%clk 00:23:20]}
{[%emt 00:04:53]} Rf6 {[%clk 00:28:38]} {[%emt 00:03:55]} 28. Bd3 {[%clk
00:13:45]} {[%emt 00:10:05]} b6 {[%clk 00:23:04]} {[%emt 00:06:05]} 29. Be4
{[%clk 00:12:54]} {[%emt 00:01:20]} Qd7 {[%clk 00:23:27]} {[%emt 00:00:05]} 30.
Bd5+ {[%clk 00:12:24]} {[%emt 00:01:02]} Kh8 {[%clk 00:23:00]} {[%emt
00:00:57]} 31. Qc3 {[%clk 00:09:28]} {[%emt 00:03:26]} Ng7 {[%clk 00:20:50]}
{[%emt 00:02:40]} 32. Be4 {[%clk 00:09:22]} {[%emt 00:00:35]} Qe7 {[%clk
00:19:30]} {[%emt 00:01:50]} 33. Bc2 {[%clk 00:09:25]} {[%emt 00:00:28]} Re6
{[%clk 00:16:36]} {[%emt 00:03:24]} 34. Rxf4 {[%clk 00:05:01]} {[%emt
00:04:54]} Re3 {[%clk 00:16:51]} {[%emt 00:00:15]} 35. Qa1 {[%clk 00:04:50]}
{[%emt 00:00:40]} Re8 {[%clk 00:13:51]} {[%emt 00:03:30]} 36. h3 {[%clk
00:04:47]} {[%emt 00:00:33]} Re1+ {[%clk 00:14:13]} {[%emt 00:00:08]} 37. Rxe1
{[%clk 00:02:20]} {[%emt 00:02:57]} Qxe1+ {[%clk 00:14:36]} {[%emt 00:00:07]}
38. Qxe1 {[%clk 00:02:45]} {[%emt 00:00:05]} Rxe1+ {[%clk 00:15:05]} {[%emt
00:00:02]} 39. Kh2 {[%clk 00:03:06]} {[%emt 00:00:09]} Nge6 {[%clk 00:15:26]}
{[%emt 00:00:08]} 40. Rf7 {[%clk 00:30:39]} {[%emt 00:02:57]} Re2 {[%clk
00:39:54]} {[%emt 00:06:03]} 41. Be4 {[%clk 00:26:17]} {[%emt 00:04:51]} Ng5
{[%clk 00:31:41]} {[%emt 00:08:43]} 42. Rf6 {[%clk 00:10:19]} {[%emt 00:16:28]}
Ngxe4 {[%clk 00:28:22]} {[%emt 00:03:49]} 43. fxe4 {[%clk 00:10:42]} {[%emt
00:00:07]} Nxb3 {[%clk 00:28:47]} {[%emt 00:00:05]} 44. Nxd6 {[%clk 00:08:52]}
{[%emt 00:02:19]} Nc5 {[%clk 00:24:39]} {[%emt 00:04:38]} 45. Rf7 {[%clk
00:07:39]} {[%emt 00:01:43]} Kg8 {[%clk 00:14:51]} {[%emt 00:10:18]} 46. Ra7
{[%clk 00:04:19]} {[%emt 00:03:51]} Nxe4 {[%clk 00:07:47]} {[%emt 00:07:34]} 47.
Re7 {[%clk 00:00:40]} {[%emt 00:04:09]} Nc3 {[%clk 00:08:02]} {[%emt 00:00:15]}
48. Rxe2 {[%clk 00:01:00]} {[%emt 00:00:09]} Nxe2 {[%clk 00:08:28]} {[%emt
00:00:05]} 49. Nc8 {[%clk 00:01:23]} {[%emt 00:00:07]} Kf7 {[%clk 00:08:36]}
{[%emt 00:00:21]} 50. Nxb6 {[%clk 00:01:22]} {[%emt 00:00:33]} Ke6 {[%clk
00:08:47]} {[%emt 00:00:19]} 51. c5 {[%clk 00:01:28]} {[%emt 00:00:24]} Nc3
{[%clk 00:09:08]} {[%emt 00:00:09]} 52. Nc4 {[%clk 00:00:41]} {[%emt 00:01:16]}
Kd5 {[%clk 00:06:30]} {[%emt 00:03:08]} 53. Nxa5 {[%clk 00:01:06]} {[%emt
00:00:06]} Kxc5 {[%clk 00:06:51]} {[%emt 00:00:09]} 54. Nb3+ {[%clk 00:00:32]}
{[%emt 00:01:04]} Kc4 {[%clk 00:07:09]} {[%emt 00:00:11]} 55. Na5+ {[%clk
00:00:31]} {[%emt 00:00:32]} Kc5 {[%clk 00:06:26]} {[%emt 00:01:12]} 56. Nb7+
{[%clk 00:00:32]} {[%emt 00:00:31]} Kc6 {[%clk 00:06:40]} {[%emt 00:00:15]} 57.
Nd8+ {[%clk 00:00:34]} {[%emt 00:00:28]} Kd7 {[%clk 00:07:03]} {[%emt
00:00:06]} 58. Nf7 {[%clk 00:00:57]} {[%emt 00:00:08]} Ke7 {[%clk 00:06:22]}
{[%emt 00:01:10]} 59. Ng5 {[%clk 00:00:33]} {[%emt 00:00:54]} h6 {[%clk
00:06:49]} {[%emt 00:00:04]} 60. Nf3 {[%clk 00:00:34]} {[%emt 00:00:29]} Nxa4
{[%clk 00:06:58]} {[%emt 00:00:20]} 1/2-1/2